fUSD/lending_fUSD_20241222
["ID","MTS","AMOUNT","RATE_DAILY","PERIOD"]
[346350969,1734905432902,-4476.3631,0.00019078,2]
[346350971,1734905432912,-496.11,0.00019078,2]
[346350973,1734905432922,-494.56,0.00019078,2]
[346350975,1734905432934,-493.31,0.00019078,2]
[346350977,1734905432945,-31674.88250475,0.00019078,2]
[346350980,1734905432962,-339.624,0.00019078,2]
[346350983,1734905432976,-23540.49349525,0.00019078,2]
[346350985,1734905432986,-1000.0,0.00019078,2]
[346350987,1734905432999,-1347.73012774,0.00019168,2]
[346350989,1734905433011,-7500.0,0.00019177,2]
[346350992,1734905433022,-500.0,0.00019178,2]
[346350994,1734905433034,-500.0,0.00019178,2]
[346350996,1734905433045,-500.0,0.00019178,2]
[346350998,1734905433056,-500.0,0.00019178,2]
[346351000,1734905433068,-500.0,0.00019178,2]
[346351002,1734905433080,-500.0,0.00019178,2]
[346351005,1734905433092,-500.0,0.00019178,2]
[346351007,1734905433103,-502.77895479,0.00019178,2]
[346351009,1734905433115,-500.0,0.00019178,2]
[346351011,1734905433127,-500.0,0.00019178,2]
[346351013,1734905433138,-507.64023897,0.00019178,2]
[346351016,1734905433150,-500.0,0.00019178,2]
[346351018,1734905433161,-500.0,0.00019178,2]
[346351020,1734905433172,-500.0,0.00019178,2]
[346351022,1734905433184,-500.0,0.00019178,2]
[346351024,1734905433195,-500.0,0.00019178,2]
[346351026,1734905433206,-500.0,0.00019178,2]
[346351029,1734905433218,-500.0,0.00019178,2]
[346351031,1734905433229,-502.3,0.00019178,2]
[346351033,1734905433241,-500.0,0.00019178,2]
[346351035,1734905433252,-500.0,0.00019178,2]
[346351037,1734905433263,-500.0,0.00019178,2]
[346351039,1734905433274,-500.0,0.00019178,2]
[346351041,1734905433286,-500.0,0.00019178,2]
[346351044,1734905433297,-395.46006413,0.00019178,2]
[346351046,1734905433309,-500.0,0.00019178,2]
[346351048,1734905433320,-500.0,0.00019178,2]
[346351050,1734905433331,-500.0,0.00019178,2]
[346351052,1734905433342,-500.0,0.00019178,2]
[346351055,1734905433354,-500.0,0.00019178,2]
[346351057,1734905433365,-685.711135,0.00019178,2]
[346351059,1734905433376,-1154.672552,0.00019178,2]
[346351061,1734905433389,-500.0,0.00019178,2]
[346351063,1734905433402,-500.0,0.00019178,2]
[346351065,1734905433412,-500.0,0.00019178,2]
[346351068,1734905433423,-500.0,0.00019178,2]
[346351070,1734905433435,-500.0,0.00019178,2]
[346351072,1734905433446,-500.0,0.00019178,2]
[346351074,1734905433456,-500.0,0.00019178,2]
[346351076,1734905433468,-500.0,0.00019178,2]
[346351078,1734905433480,-500.0,0.00019178,2]
[346351080,1734905433490,-500.0,0.00019178,2]
[346351083,1734905433501,-500.0,0.00019178,2]
[346351085,1734905433512,-500.0,0.00019178,2]
[346351087,1734905433524,-500.0,0.00019178,2]
[346351089,1734905433535,-500.0,0.00019178,2]
[346351091,1734905433546,-500.0,0.00019178,2]
[346351093,1734905433556,-500.0,0.00019178,2]
[346351095,1734905433567,-500.0,0.00019178,2]
[346351098,1734905433578,-500.0,0.00019178,2]
[346351100,1734905433589,-500.0,0.00019178,2]
[346351102,1734905433600,-500.0,0.00019178,2]
[346351104,1734905433612,-500.0,0.00019178,2]
[346351106,1734905433623,-500.0,0.00019178,2]
[346351108,1734905433634,-500.0,0.00019178,2]
[346351110,1734905433645,-500.0,0.00019178,2]
[346351113,1734905433656,-500.0,0.00019178,2]
[346351115,1734905433667,-303.52,0.00019178,2]
[346351117,1734905433678,-181.90378632,0.00019178,2]
[346351119,1734905433688,-500.0,0.00019178,2]
[346351121,1734905433699,-500.0,0.00019178,2]
[346351123,1734905433709,-500.0,0.00019178,2]
[346351125,1734905433721,-500.0,0.00019178,2]
[346351128,1734905433732,-500.0,0.00019178,2]
[346351130,1734905433743,-500.0,0.00019178,2]
[346351132,1734905433754,-500.0,0.00019178,2]
[346351134,1734905433764,-500.0,0.00019178,2]
[346351136,1734905433774,-500.0,0.00019178,2]
[346351138,1734905433784,-1289.94,0.00019178,2]
[346351140,1734905433794,-500.0,0.00019178,2]
[346351142,1734905433804,-500.0,0.00019178,2]
[346351144,1734905433813,-500.0,0.00019178,2]
[346351183,1734905434175,-500.0,0.00019178,2]
[346351186,1734905434192,-500.0,0.00019178,2]
[346351188,1734905434202,-500.0,0.00019178,2]
[346351190,1734905434211,-500.0,0.00019178,2]
[346351192,1734905434220,-692.91,0.00019178,2]
[346351194,1734905434230,-500.0,0.00019178,2]
[346351196,1734905434240,-555.78,0.00019178,2]
[346351197,1734905434250,-500.0,0.00019178,2]
[346351199,1734905434260,-500.0,0.00019178,2]
[346351202,1734905434269,-500.0,0.00019178,2]
[346351204,1734905434279,-500.0,0.00019178,2]
[346351206,1734905434289,-500.0,0.00019178,2]
[346351207,1734905434298,-500.0,0.00019178,2]
[346351208,1734905434308,-577.38,0.00019178,2]
[346351209,1734905434318,-282.84,0.00019178,2]
[346351210,1734905434328,-500.0,0.00019178,2]
[346351212,1734905434338,-526.32332211,0.00019178,2]
[346351214,1734905434347,-539.22,0.00019178,2]
[346351215,1734905434357,-500.0,0.00019178,2]
[346351218,1734905434367,-500.0,0.00019178,2]
[346351219,1734905434377,-500.0,0.00019178,2]
[346351221,1734905434388,-626.94,0.00019178,2]
[346351223,1734905434398,-500.0,0.00019178,2]
[346351225,1734905434408,-500.0,0.00019178,2]
[346351227,1734905434418,-500.0,0.00019178,2]
[346351229,1734905434428,-500.0,0.00019178,2]
[346351230,1734905434438,-500.0,0.00019178,2]
[346351231,1734905434447,-500.0,0.00019178,2]
[346351232,1734905434456,-500.0,0.00019178,2]
[346351233,1734905434468,-500.0,0.00019178,2]
[346351234,1734905434478,-608.5,0.00019178,2]
[346351235,1734905434487,-923.79,0.00019178,2]
[346351236,1734905434498,-483.92358873,0.00019178,2]
[346351237,1734905434507,-500.0,0.00019178,2]
[346351238,1734905434517,-500.0,0.00019178,2]
[346351239,1734905434526,-500.0,0.00019178,2]
[346351240,1734905434536,-500.0,0.00019178,2]
[346351241,1734905434546,-500.0,0.00019178,2]
[346351242,1734905434555,-500.0,0.00019178,2]
[346351243,1734905434564,-630.84,0.00019178,2]
[346351244,1734905434573,-500.0,0.00019178,2]
[346351245,1734905434582,-500.0,0.00019178,2]
[346351246,1734905434592,-500.0,0.00019178,2]
[346351247,1734905434600,-500.0,0.00019178,2]
[346351248,1734905434610,-500.0,0.00019178,2]
[346351249,1734905434620,-500.0,0.00019178,2]
[346351250,1734905434629,-500.0,0.00019178,2]
[346351251,1734905434639,-181.77997923,0.00019178,2]
[346351252,1734905434654,-270.27682836,0.00019178,2]
[346351253,1734905434669,-47.94319241,0.00019178,2]
[346351254,1734905434679,-500.0,0.00019178,2]
[346351255,1734905434688,-500.0,0.00019178,2]
[346351256,1734905434697,-500.0,0.00019178,2]
[346351257,1734905434707,-500.0,0.00019178,2]
[346351258,1734905434715,-500.0,0.00019178,2]
[346351259,1734905434725,-214.53810415,0.00019178,2]
[346351260,1734905434737,-285.46189585,0.00019178,2]
[346351261,1734905434749,-500.0,0.00019178,2]
[346351262,1734905434758,-500.0,0.00019178,2]
[346351263,1734905434767,-500.0,0.00019178,2]
[346351264,1734905434777,-500.0,0.00019178,2]
[346351265,1734905434786,-500.0,0.00019178,2]
[346351266,1734905434795,-500.0,0.00019178,2]
[346351267,1734905434804,-500.0,0.00019178,2]
[346351268,1734905434813,-500.0,0.00019178,2]
[346351269,1734905434823,-500.0,0.00019178,2]
[346351270,1734905434832,-121.79017748,0.00019178,2]
[346351271,1734905434843,-378.20982252,0.00019178,2]
[346351272,1734905434854,-500.0,0.00019178,2]
[346351273,1734905434864,-273.34030563,0.00019178,2]
[346351274,1734905434875,-226.65969437,0.00019178,2]
[346351275,1734905434884,-30.04140793,0.00019178,2]
[346351278,1734905437860,-469.95859207,0.00019178,2]
[346351279,1734905437870,-500.0,0.00019178,2]
[346351280,1734905437880,-500.0,0.00019178,2]
[346351281,1734905437890,-500.0,0.00019178,2]
[346351282,1734905437899,-597.34,0.00019178,2]
[346351283,1734905437908,-1028.75,0.00019178,2]
[346351284,1734905437917,-500.0,0.00019178,2]
[346351285,1734905437926,-500.0,0.00019178,2]
[346351286,1734905437935,-579.1,0.00019178,2]
[346351287,1734905437945,-500.0,0.00019178,2]
[346351288,1734905437954,-500.0,0.00019178,2]
[346351289,1734905437964,-500.0,0.00019178,2]
[346351290,1734905437973,-500.0,0.00019178,2]
[346351291,1734905437983,-500.0,0.00019178,2]
[346351292,1734905437994,-500.0,0.00019178,2]
[346351293,1734905438003,-158.09967793,0.00019178,2]
[346351294,1734905438016,-341.90032207,0.00019178,2]
[346351295,1734905438026,-500.0,0.00019178,2]
[346351296,1734905438035,-500.0,0.00019178,2]
[346351297,1734905438044,-484.67,0.00019178,2]
[346351298,1734905438054,-561.62,0.00019178,2]
[346351299,1734905438064,-500.0,0.00019178,2]
[346351300,1734905438074,-500.0,0.00019178,2]
[346351301,1734905438083,-500.0,0.00019178,2]
[346351302,1734905438093,-500.0,0.00019178,2]
[346351303,1734905438102,-1498.83,0.00019178,2]
[346351304,1734905438112,-500.0,0.00019178,2]
[346351305,1734905438121,-510.38175325,0.00019178,2]
[346351306,1734905438131,-500.0,0.00019178,2]
[346351307,1734905438141,-500.0,0.00019178,2]
[346351308,1734905438150,-500.0,0.00019178,2]
[346351309,1734905438159,-796.04,0.00019178,2]
[346351310,1734905438169,-500.0,0.00019178,2]
[346351311,1734905438178,-522.96,0.00019178,2]
[346351312,1734905438187,-555.45,0.00019178,2]
[346351313,1734905438197,-557.1,0.00019178,2]
[346351314,1734905438206,-1901.42,0.00019178,2]
[346351315,1734905438215,-500.0,0.00019178,2]
[346351316,1734905438225,-449.06145208,0.00019178,2]
[346351317,1734905438243,-50.93854792,0.00019178,2]
[346351318,1734905438252,-449.06145208,0.00019178,2]
[346351319,1734905438271,-433.19769813,0.00019178,2]
[346351320,1734905438283,-864.86084979,0.00019178,2]
[346351321,1734905438292,-500.0,0.00019178,2]
[346351322,1734905438301,-500.0,0.00019178,2]
[346351323,1734905438311,-500.0,0.00019178,2]
[346351324,1734905438321,-1149.06,0.00019178,2]
[346351325,1734905438331,-1196.34,0.00019178,2]
[346351326,1734905438340,-1986.26,0.00019178,2]
[346351328,1734905438350,-1643.4,0.00019178,2]
[346351330,1734905438359,-500.0,0.00019178,2]
[346351332,1734905438368,-165.00918261,0.00019178,2]
[346351335,1734905438400,-334.99081739,0.00019178,2]
[346351337,1734905438411,-609.68,0.00019178,2]
[346351339,1734905438421,-1039.17342135,0.00019178,2]
[346351341,1734905438435,-2079.71657865,0.00019178,2]
[346351343,1734905438446,-255.18965448,0.00019178,2]
[346351446,1734905440300,-244.81034552,0.00019178,2]
[346351447,1734905440310,-500.0,0.00019178,2]
[346351448,1734905440320,-1016.35235699,0.00019178,2]
[346351449,1734905440332,-944.14,0.00019178,2]
[346351450,1734905440419,-381.28266465,0.00019178,2]
[346351458,1734905442987,-603.66497836,0.00019178,2]
[346351459,1734905442997,-2269.29,0.00019178,2]
[346351460,1734905443006,-500.0,0.00019178,2]
[346351461,1734905443190,-500.0,0.00019178,2]
[346351462,1734905443201,-1384.42,0.00019178,2]
[346351463,1734905443210,-500.0,0.00019178,2]
[346351464,1734905443220,-550.55856502,0.00019178,2]
[346351465,1734905443229,-26026.12,0.00019178,2]
[346351467,1734905443238,-1424.9,0.00019178,2]
[346351469,1734905443249,-9821.84,0.00019178,2]
[346351470,1734905443258,-500.0,0.00019178,2]
[346351471,1734905443267,-500.0,0.00019178,2]
[346351472,1734905443275,-911.82,0.00019178,2]
[346351473,1734905443285,-1628.88,0.00019178,2]
[346351474,1734905443294,-500.0,0.00019178,2]
[346351475,1734905443303,-510.85606092,0.00019178,2]
[346351476,1734905443313,-500.0,0.00019178,2]
[346351477,1734905443322,-500.0,0.00019178,2]
[346351478,1734905443331,-530.16,0.00019178,2]
[346351479,1734905443341,-546.8,0.00019178,2]
[346351480,1734905443350,-538.12,0.00019178,2]
[346351481,1734905443359,-500.0,0.00019178,2]
[346351482,1734905443368,-507.06358408,0.00019178,2]
[346351483,1734905443377,-1607.79,0.00019178,2]
[346351484,1734905443387,-11918.46543851,0.00019178,2]
[346351485,1734905443405,-845.01456149,0.00019178,2]
[346351486,1734905443415,-146.14543851,0.00019178,2]
[346351487,1734905443426,-353.85456149,0.00019178,2]
[346351488,1734905443437,-475.58842385,0.00019178,2]
[346351489,1734905443446,-515.06,0.00019178,2]
[346351490,1734905443455,-500.0,0.00019178,2]
[346351491,1734905443465,-717.57,0.00019178,2]
[346351492,1734905443474,-6649.87,0.00019178,2]
[346351493,1734905443484,-500.0,0.00019178,2]
[346351494,1734905443494,-500.0,0.00019178,2]
[346351495,1734905443504,-893.36,0.00019178,2]
[346351496,1734905443513,-500.0,0.00019178,2]
[346351497,1734905443523,-500.0,0.00019178,2]
[346351498,1734905443532,-500.0,0.00019178,2]
[346351499,1734905443542,-877.87,0.00019178,2]
[346351500,1734905443551,-500.0,0.00019178,2]
[346351501,1734905443561,-500.0,0.00019178,2]
[346351502,1734905443570,-500.0,0.00019178,2]
[346351503,1734905443579,-1211.24,0.00019178,2]
[346351504,1734905443589,-232.08701466,0.00019178,2]
[346351505,1734905443601,-267.91298534,0.00019178,2]
[346351506,1734905443611,-500.0,0.00019178,2]
[346351507,1734905443620,-500.0,0.00019178,2]
[346351508,1734905443629,-502.96338871,0.00019178,2]
[346351509,1734905443639,-603.23845264,0.00019178,2]
[346351510,1734905443648,-976.77,0.00019178,2]
[346351511,1734905443658,-3930.77,0.00019178,2]
[346351512,1734905443667,-628.16058547,0.00019178,2]
[346351513,1734905443677,-500.0,0.00019178,2]
[346351514,1734905443686,-2650.45,0.00019178,2]
[346351515,1734905443696,-500.0,0.00019178,2]
[346351516,1734905443705,-500.0,0.00019178,2]
[346351517,1734905443714,-500.0,0.00019178,2]
[346351518,1734905443724,-623.02,0.00019178,2]
[346351519,1734905443733,-500.0,0.00019178,2]
[346351520,1734905443743,-2073.68,0.00019178,2]
[346351521,1734905443753,-500.0,0.00019178,2]
[346351522,1734905443763,-689.38,0.00019178,2]
[346351523,1734905443772,-974.63,0.00019178,2]
[346351525,1734905443781,-500.0,0.00019178,2]
[346351527,1734905443791,-500.0,0.00019178,2]
[346351529,1734905443800,-500.0,0.00019178,2]
[346351531,1734905443810,-500.0,0.00019178,2]
[346351533,1734905443819,-500.0,0.00019178,2]
[346351535,1734905443828,-500.0,0.00019178,2]
[346351537,1734905443838,-500.0,0.00019178,2]
[346351538,1734905443848,-500.0,0.00019178,2]
[346351539,1734905443859,-500.0,0.00019178,2]
[346351540,1734905443868,-500.0,0.00019178,2]
[346351541,1734905443878,-679.11,0.00019178,2]
[346351542,1734905443888,-500.0,0.00019178,2]
[346351543,1734905443897,-1343.83,0.00019178,2]
[346351544,1734905443907,-500.0,0.00019178,2]
[346351545,1734905443916,-500.0,0.00019178,2]
[346351546,1734905443925,-2649.35,0.00019178,2]
[346351547,1734905443935,-500.0,0.00019178,2]
[346351548,1734905443944,-1898.05,0.00019178,2]
[346351549,1734905443953,-1565.55,0.00019178,2]
[346351550,1734905443963,-500.0,0.00019178,2]
[346351551,1734905443973,-500.0,0.00019178,2]
[346351552,1734905443982,-500.0,0.00019178,2]
[346351553,1734905443992,-500.0,0.00019178,2]
[346351554,1734905444002,-616.8215609,0.00019178,2]
[346351555,1734905444012,-500.0,0.00019178,2]
[346351556,1734905444022,-500.0,0.00019178,2]
[346351557,1734905444031,-1385.71,0.00019178,2]
[346351558,1734905444041,-1219.01,0.00019178,2]
[346351559,1734905444051,-500.0,0.00019178,2]
[346351560,1734905444061,-1411.35,0.00019178,2]
[346351561,1734905444071,-500.0,0.00019178,2]
[346351562,1734905444080,-976.41,0.00019178,2]
[346351563,1734905444090,-13438.47,0.00019178,2]
[346351564,1734905444099,-500.0,0.00019178,2]
[346351565,1734905444110,-502.90427664,0.00019178,2]
[346351566,1734905444119,-2830.31,0.00019178,2]
[346351567,1734905444129,-500.0,0.00019178,2]
[346351568,1734905444138,-500.0,0.00019178,2]
[346351569,1734905444147,-4939.52,0.00019178,2]
[346351570,1734905444157,-500.0,0.00019178,2]
[346351571,1734905444166,-500.0,0.00019178,2]
[346351572,1734905444176,-3163.52,0.00019178,2]
[346351573,1734905444185,-1557.21,0.00019178,2]
[346351574,1734905444195,-500.0,0.00019178,2]
[346351575,1734905444204,-500.0,0.00019178,2]
[346351576,1734905444214,-500.0,0.00019178,2]
[346351577,1734905444223,-500.0,0.00019178,2]
[346351578,1734905444232,-500.0,0.00019178,2]
[346351579,1734905444241,-500.0,0.00019178,2]
[346351580,1734905444252,-500.0,0.00019178,2]
[346351581,1734905444261,-1068.25,0.00019178,2]
[346351582,1734905444271,-2191.43,0.00019178,2]
[346351583,1734905444280,-3827.73,0.00019178,2]
[346351584,1734905444289,-500.0,0.00019178,2]
[346351585,1734905444298,-2887.2,0.00019178,2]
[346351586,1734905444308,-500.0,0.00019178,2]
[346351587,1734905444317,-500.0,0.00019178,2]
[346351588,1734905444326,-500.0,0.00019178,2]
[346351589,1734905444335,-500.0,0.00019178,2]
[346351590,1734905444344,-500.0,0.00019178,2]
[346351591,1734905444354,-596.16,0.00019178,2]
[346351592,1734905444363,-3462.04,0.00019178,2]
[346351593,1734905444372,-500.0,0.00019178,2]
[346351594,1734905444381,-500.0,0.00019178,2]
[346351595,1734905444393,-500.0,0.00019178,2]
[346351596,1734905444402,-404.81292543,0.00019178,2]
[346351597,1734905444411,-676.03,0.00019178,2]
[346351598,1734905444420,-892.25,0.00019178,2]
[346351599,1734905444430,-500.0,0.00019178,2]
[346351600,1734905444439,-500.0,0.00019178,2]
[346351601,1734905444448,-500.0,0.00019178,2]
[346351602,1734905444457,-500.2215521,0.00019178,2]
[346351603,1734905444469,-500.78525979,0.00019178,2]
[346351604,1734905444478,-8386.98,0.00019178,2]
[346351605,1734905444487,-918.54,0.00019178,2]
[346351606,1734905444497,-500.0,0.00019178,2]
[346351607,1734905444506,-500.71729566,0.00019178,2]
[346351608,1734905444515,-500.0,0.00019178,2]
[346351609,1734905444524,-500.0,0.00019178,2]
[346351610,1734905444533,-500.0,0.00019178,2]
[346351611,1734905444542,-2980.28,0.00019178,2]
[346351612,1734905444552,-500.0,0.00019178,2]
[346351613,1734905444561,-762.92,0.00019178,2]
[346351614,1734905444571,-500.0,0.00019178,2]
[346351615,1734905444580,-2344.17,0.00019178,2]
[346351616,1734905444589,-500.0,0.00019178,2]
[346351617,1734905444599,-500.0,0.00019178,2]
[346351618,1734905444608,-500.0,0.00019178,2]
[346351619,1734905444617,-1241.05,0.00019178,2]
[346351620,1734905444626,-700.43,0.00019178,2]
[346351621,1734905444636,-500.0,0.00019178,2]
[346351622,1734905444647,-500.0,0.00019178,2]
[346351623,1734905444656,-1755.19,0.00019178,2]
[346351624,1734905444665,-1992.29,0.00019178,2]
[346351625,1734905444674,-4087.01,0.00019178,2]
[346351626,1734905444683,-500.0,0.00019178,2]
[346351627,1734905444692,-6186.35665067,0.00019178,2]
[346351628,1734905444710,-262.15421423,0.00019178,2]
[346351629,1734905444721,-4.9691351,0.00019178,2]
[346351630,1734905444730,-500.0,0.00019178,2]
[346351631,1734905444739,-230.53404505,0.00019178,2]
[346351633,1734905445952,-311.68173227,0.00018832,2]
[346351634,1734905445963,-789.31826773,0.00018832,2]
[346351635,1734905445973,-3452.21288855,0.00019039,7]
[346351636,1734905445983,-269.46595495,0.00019178,2]
[346351637,1734905445993,-2912.44,0.00019178,2]
[346351638,1734905446004,-2050.43,0.00019178,2]
[346351639,1734905446013,-500.0,0.00019178,2]
[346351640,1734905446023,-553.22,0.00019178,2]
[346351641,1734905446033,-505.77,0.00019178,2]
[346351642,1734905446042,-500.0,0.00019178,2]
[346351643,1734905446052,-500.0,0.00019178,2]
[346351644,1734905446062,-500.0,0.00019178,2]
[346351645,1734905446071,-500.0,0.00019178,2]
[346351646,1734905446086,-667.21,0.00019178,2]
[346351647,1734905446097,-500.0,0.00019178,2]
[346351648,1734905446106,-500.0,0.00019178,2]
[346351649,1734905446115,-502.99258797,0.00019178,2]
[346351650,1734905446124,-500.0,0.00019178,2]
[346351651,1734905446134,-500.0,0.00019178,2]
[346351652,1734905446143,-500.0,0.00019178,2]
[346351653,1734905446153,-1000.0,0.00019178,2]
[346351654,1734905446162,-1100.4,0.00019178,2]
[346351655,1734905446171,-174.00172423,0.00019178,2]
[346351656,1734905446181,-1602.06,0.00019178,2]
[346351657,1734905446190,-500.0,0.00019178,2]
[346351658,1734905446200,-773.75,0.00019178,2]
[346351659,1734905446210,-1259.94,0.00019178,2]
[346351660,1734905446219,-500.0,0.00019178,2]
[346351661,1734905446229,-6101.94,0.00019178,2]
[346351662,1734905446239,-1299.97,0.00019178,2]
[346351663,1734905446249,-500.0,0.00019178,2]
[346351664,1734905446258,-500.0,0.00019178,2]
[346351665,1734905446269,-2517.29,0.00019178,2]
[346351666,1734905446278,-519.56,0.00019178,2]
[346351667,1734905446288,-569.1,0.00019178,2]
[346351669,1734905446298,-764.3,0.00019178,2]
[346351671,1734905446307,-634.42018891,0.00019178,2]
[346351673,1734905446360,-500.0,0.00019178,2]
[346351674,1734905446370,-1014.64,0.00019178,2]
[346351675,1734905446379,-500.0,0.00019178,2]
[346351677,1734905446390,-1253.73,0.00019178,2]
[346351679,1734905446401,-500.0,0.00019178,2]
[346351681,1734905446411,-500.0,0.00019178,2]
[346351683,1734905446420,-500.0,0.00019178,2]
[346351685,1734905446430,-562.12,0.00019178,2]
[346351687,1734905446439,-500.0,0.00019178,2]
[346351689,1734905446449,-500.0,0.00019178,2]
[346351691,1734905446458,-500.0,0.00019178,2]
[346351693,1734905446469,-857.53,0.00019178,2]
[346351695,1734905446478,-292.2,0.00019178,2]
[346351697,1734905446490,-500.0,0.00019178,2]
[346351699,1734905446499,-500.0,0.00019178,2]
[346351701,1734905446508,-926.36,0.00019178,2]
[346351703,1734905446517,-782.15,0.00019178,2]
[346351705,1734905446526,-1843.22,0.00019178,2]
[346351707,1734905446535,-518.43,0.00019178,2]
[346351709,1734905446545,-500.0,0.00019178,2]
[346351711,1734905446555,-538.58,0.00019178,2]
[346351713,1734905446564,-500.0,0.00019178,2]
[346351715,1734905446574,-500.0,0.00019178,2]
[346351716,1734905446583,-8405.24,0.00019178,2]
[346351719,1734905446594,-500.0,0.00019178,2]
[346351720,1734905446603,-952.35,0.00019178,2]
[346351722,1734905446612,-374.18,0.00019178,2]
[346351724,1734905446621,-500.0,0.00019178,2]
[346351726,1734905446630,-500.0,0.00019178,2]
[346351728,1734905446639,-500.0,0.00019178,2]
[346351729,1734905446648,-500.0,0.00019178,2]
[346351730,1734905446658,-1436.37,0.00019178,2]
[346351731,1734905446669,-783.71,0.00019178,2]
[346351732,1734905446678,-3668.0,0.00019178,2]
[346351733,1734905446688,-7500.0,0.00019249,2]
[346351734,1734905446698,-1347.73012774,0.0001926,2]
[346351735,1734905446708,-1347.73012774,0.00019351,2]
[346351736,1734905446718,-184.66583517,0.00019352,2]
[346351737,1734905446727,-1347.73012774,0.00019443,2]
[346351738,1734905446736,-578.50384651,0.00019451,2]
[346351739,1734905446745,-500.0,0.00019452,2]
[346351740,1734905446758,-359.04292403,0.00019452,2]
[346351741,1734905446768,-500.0,0.00019452,2]
[346351742,1734905446777,-500.0,0.00019452,2]
[346351743,1734905446786,-500.0,0.00019452,2]
[346351744,1734905446795,-685.711135,0.00019452,2]
[346351745,1734905446805,-1154.672552,0.00019452,2]
[346351746,1734905446814,-500.0,0.00019452,2]
[346351747,1734905446824,-500.0,0.00019452,2]
[346351748,1734905446834,-500.0,0.00019452,2]
[346351749,1734905446843,-500.0,0.00019452,2]
[346351750,1734905446852,-500.0,0.00019452,2]
[346351751,1734905446862,-546.29,0.00019452,2]
[346351752,1734905446872,-245.4,0.00019452,2]
[346351753,1734905446882,-500.0,0.00019452,2]
[346351754,1734905446892,-500.0,0.00019452,2]
[346351755,1734905446902,-500.0,0.00019452,2]
[346351756,1734905446911,-500.0,0.00019452,2]
[346351757,1734905446921,-500.0,0.00019452,2]
[346351758,1734905446930,-500.0,0.00019452,2]
[346351759,1734905446940,-500.0,0.00019452,2]
[346351760,1734905446949,-500.0,0.00019452,2]
[346351761,1734905446958,-352.79371172,0.00019452,2]
[346351762,1734905446971,-147.20628828,0.00019452,2]
[346351763,1734905446981,-500.0,0.00019452,2]
[346351764,1734905446990,-500.0,0.00019452,2]
[346351765,1734905447001,-500.0,0.00019452,2]
[346351766,1734905447011,-271.67707269,0.00019452,2]
[346351767,1734905447147,-156.10292731,0.00019452,2]
[346351768,1734905447156,-500.0,0.00019452,2]
[346351769,1734905447165,-500.0,0.00019452,2]
[346351770,1734905447175,-1289.94,0.00019452,2]
[346351771,1734905447184,-500.0,0.00019452,2]
[346351772,1734905447193,-500.0,0.00019452,2]
[346351773,1734905447202,-500.0,0.00019452,2]
[346351774,1734905447211,-500.0,0.00019452,2]
[346351775,1734905447221,-500.0,0.00019452,2]
[346351776,1734905447230,-500.0,0.00019452,2]
[346351777,1734905447239,-500.0,0.00019452,2]
[346351778,1734905447250,-692.91,0.00019452,2]
[346351779,1734905447260,-500.0,0.00019452,2]
[346351780,1734905447269,-555.78,0.00019452,2]